Cogmind - Beta 15 @@@ ROGUE MODE // 2025.06.18 @ 03:08:57 Player: satan5 Result: Destroyed by S-10 Pest with Light Assault Rifle Performance ------------- Evolutions (1) 500 Regions Visited (4) 800 Robots Destroyed (75) 375 Value Destroyed (2425) 2425 Prototype IDs (2) 40 Alien Tech Used (0) 0 Bonus (360) 360 TOTAL SCORE: 4500 Bonus ------- High Alert Combat Kills 160 Entered Garrisons 200 Cogmind --------- Core Integrity 0/400 Matter 290/300 Energy 220/280 System Corruption 1% Temperature Cool (50) Movement Walking (190) Ox1 Location -9/Garrison Parts ------- > --- POWER (1) -------- Heavy Ion Engine > --- PROPULSION (4) --- Aluminum Leg Aluminum Leg > --- UTILITY (2) ------ Heat Sink Large Storage Unit > --- WEAPON (2) ------- Shock Rifle Shock Rifle > --- INVENTORY (15) --- Light Nuclear Core Hover Unit Hover Unit Hover Unit Hover Unit Hover Unit Hover Unit Relay Coupler [NC] (29) Relay Coupler [Sentry] (19) Relay Coupler [Hunter] (12) Remote Datajack Peak State ------------ > --- POWER ------------ Heavy Ion Engine > --- PROPULSION ------- Aluminum Leg Aluminum Leg Aluminum Leg Carbon-fiber Leg > --- UTILITY ---------- Cooling System Large Storage Unit > --- WEAPON ----------- Advanced Beam Cannon Advanced Beam Cannon > --- INVENTORY -------- Heavy Ion Engine Light Nuclear Core Aluminum Leg Aluminum Leg Hover Unit Hover Unit Hover Unit Hover Unit Hover Unit Hover Unit Heavy EM Pulse Gun Heavy EM Pulse Gun Heavy EM Pulse Gun Advanced Beam Cannon Rocket Launcher [Rating: 20] Favorites ----------- Power Heavy Ion Engine Engine Heavy Ion Engine Power Core Light Nuclear Core Propulsion Aluminum Leg Treads Light Treads Leg Aluminum Leg Utility Large Storage Unit Device Cooling System Storage Large Storage Unit Hackware Hacking Suite Weapon Advanced Beam Cannon Energy Gun EM Pulse Gun Energy Cannon Advanced Beam Cannon Ballistic Gun Light Assault Rifle Launcher Rocket Launcher Build | -11 -10 -9 -9 -9 ------- Run | Yrd Mat Mat Sto Gar Slots Evolved 2 | . . 2 . . Power . | . . . . . Propulsion 2 | . . 2 . . Utility . | . . . . . Weapon . | . . . . . Parts Attached 41 | 6 6 12 4 13 Power 6 | 1 . 3 . 2 Engine 5 | 1 . 3 . 1 Core 1 | . . . . 1 Reactor . | . . . . . Propulsion 16 | 2 1 6 2 5 Treads 1 | . . 1 . . Leg 15 | 2 1 5 2 5 Wheel . | . . . . . Hover . | . . . . . Flight . | . . . . . Utility 6 | 1 3 1 . 1 Device 2 | . . 1 . 1 Storage 3 | 1 2 . . . Processor . | . . . . . Hackware 1 | . 1 . . . Protection . | . . . . . Artifact . | . . . . . Weapon 13 | 2 2 2 2 5 Energy Gun 7 | 1 1 . . 5 Energy Cannon 3 | . . 2 1 . Ballistic Gun 2 | 1 1 . . . Ballistic Cannon . | . . . . . Launcher 1 | . . . 1 . Special Weapon . | . . . . . Impact Weapon . | . . . . . Slashing Weapon . | . . . . . Piercing Weapon . | . . . . . Special Melee Weapon . | . . . . . Unidentified Prototypes 2 | . . 2 . . Parts Lost 23 | . 3 3 . 17 Power 3 | . . 1 . 2 Propulsion 10 | . 1 1 . 8 Utility 2 | . . 1 . 1 Weapon 8 | . 2 . . 6 Highest Loss Streak 5 | . 1 2 . 5 To Critical Strikes . | . . . . . Average Backups 11 | . 7 12 15 13 Power 2 | . 1 2 2 2 Propulsion 5 | . 3 6 8 6 Utility 1 | . 2 2 . . Weapon 2 | . . . 5 3 Tool/Special . | . . . . . Unused Backups 17 | . . 6 . 11 Power 3 | . . 2 . 1 Propulsion 9 | . . 3 . 6 Utility 4 | . . 1 . 3 Weapon . | . . . . . Tool/Special 1 | . . . . 1 Average Slot Usage (%) 85 | . 86 83 100 81 Engine 9 | . 13 11 11 5 Core 1 | . . . . 5 Treads 2 | . . 9 . . Leg 29 | . 27 23 44 31 Device 4 | . . 3 11 6 Storage 11 | . 14 11 11 11 Hackware 1 | . 2 2 . . Energy Gun 6 | . 11 4 . 5 Energy Cannon 11 | . . 11 21 16 Ballistic Gun 5 | . 15 5 . . Peak Build Rating 20 | 6 10 18 18 20 Average Rating 12 | 4 7 13 17 15 On Entrance 10 | . 6 10 18 18 Naked Turns . | . . . . . Heaviest Build 38 | 13 38 38 38 38 Greatest Support 45 | 20 20 40 40 45 Greatest Overweight (x) 4 | 4 1 1 . 1 Average Overweight (x) . | . . . . . Largest Inventory Capacity 15 | 8 15 15 15 15 Average Capacity 14 | 7 14 15 15 15 Most Carried 15 | 2 12 15 15 15 Average Carried 11 | . 7 12 15 13 Final Capacity 15 | 8 15 15 15 15 Final Carried 15 | 2 11 15 15 11 Class Distribution -------------------- 54% | Mutant 45% | Scavenger-Mutant Dominant Class ---------------- Mutant | -10/Materials Mutant | -9/Materials Scavenger-Mutant | -9/Storage Mutant | -9/Garrison Resources | -11 -10 -9 -9 -9 ----------- Run | Yrd Mat Mat Sto Gar Matter Collected 773 | 236 167 149 51 170 Remotely . | . . . . . Salvage Created 2624 | 44 531 420 713 916 Parts 149 | 5 31 21 38 54 Haulers Intercepted 7 | . 2 2 3 . Recyclers Shooed 2 | . . 1 1 . Parts Field Recycled . | . . . . . Retrieved Matter . | . . . . . Parts Self-Destructed . | . . . . . Prevented . | . . . . . Kills | -11 -10 -9 -9 -9 ------- Run | Yrd Mat Mat Sto Gar Combat Hostiles Destroyed 61 | . 11 6 13 31 Guns 22 | . 11 3 . 8 Cannons 33 | . . 3 9 21 AOE 4 | . . . 4 . Classes Destroyed 11 | 1 4 2 1 3 Tunneler 2 | 2 . . . . Hauler 7 | . 2 2 3 . Recycler 2 | . . . 2 . Operator 2 | . 1 1 . . Watcher 1 | . . 1 . . Swarmer 24 | . 3 . 4 17 Grunt 26 | . 8 4 5 9 Brawler 1 | . . . . 1 Sentry 7 | . . 2 4 1 Hunter 2 | . . . . 2 Programmer 1 | . . . . 1 Best Kill Streak 10 | 1 3 3 10 8 Combat Bots Only 8 | . 3 3 7 8 Max Kills in Single Turn 6 | 1 1 1 6 2 Gunslinging . | . . . . . Exploded 4 | . . . 4 . Melee . | . . . . . Uniques/NPCs Destroyed . | . . . . . Combat | -11 -10 -9 -9 -9 -------- Run | Yrd Mat Mat Sto Gar Hostile Shots Fired 352 | . 65 43 36 208 Missed 75 | . 15 11 9 40 Hits 277 | . 50 32 27 168 Projectile 277 | . 50 32 27 168 Critical Strikes 4 | . . . 2 2 Damage Taken 2997 | . 561 449 354 1633 Core 521 | . 118 66 65 272 Absorbed by Shields . | . . . . . Core Remaining (%) 76 | 100 52 . . . Volleys Fired 214 | 6 73 33 33 69 Largest 2 | 2 2 2 2 2 Hottest 136 | 60 60 136 136 136 Shots Fired 413 | 12 133 66 65 137 Gun 228 | 12 133 48 . 35 Cannon 184 | . . 18 64 102 Launcher 1 | . . . 1 . Special . | . . . . . Kinetic 106 | 6 76 24 . . Thermal 219 | . 11 42 64 102 Explosive 1 | . . . 1 . Electromagnetic 87 | 6 46 . . 35 Robot Hit Streak 16 | 6 16 9 9 10 Robot Miss Streak 5 | 1 5 2 3 5 Penetration Max . | . . . . . Secondary Targets 1 | . . 1 . . Max Gunslinging Chain 1 | . . 1 . . Shots Hit Robots 260 | 8 88 44 40 80 Core Hits 98 | 2 29 16 18 33 Critical Kills 3 | . . 1 . 2 Critical Parts Destroyed 1 | . 1 . . . Critical Strikes 5 | . 1 1 . 3 Meltdown 3 | . . 1 . 2 Destroy 1 | . 1 . . . Corrupt 1 | . . . . 1 Melee Attacks . | . . . . . Impact . | . . . . . Slashing . | . . . . . Piercing . | . . . . . Sneak Attacks . | . . . . . Combat Hostiles . | . . . . . Follow-up Attacks . | . . . . . Damage Inflicted 4389 | 82 922 577 1209 1599 Guns 1583 | 82 922 313 . 266 Cannons 2463 | . . 264 866 1333 Explosions 343 | . . . 343 . Melee . | . . . . . Ramming . | . . . . . Kinetic 543 | 31 399 113 . . Thermal 2763 | . 100 464 866 1333 Explosive 343 | . . . 343 . Electromagnetic 740 | 51 423 . . 266 Impact . | . . . . . Slashing . | . . . . . Piercing . | . . . . . Highest Corruption 1 | . . . . 1 Average Corruption 1 | . . . . 1 Corruption Purged . | . . . . . Corruption Blocked . | . . . . . Effects 5 | . . . . 5 Message Errors 2 | . . . . 2 Matter Fused 1 | . . . . 1 Heat Flow Errors 1 | . . . . 1 Weapon Failures 1 | . . . . 1 Overload Shots . | . . . . . Overflow Damage 44 | . . . 38 6 Projectiles 6 | . . . . 6 Explosions 38 | . . . 38 . Melee . | . . . . . Knockbacks . | . . . . . Impact . | . . . . . Kinetic . | . . . . . Secondary . | . . . . . Self-Inflicted Damage . | . . . . . Shots . | . . . . . Rammed . | . . . . . Targets Rammed . | . . . . . Kicked . | . . . . . Crushed . | . . . . . Highest Temperature 442 | 20 170 69 138 442 Average Temperature 68 | 14 53 22 32 106 Received Heat Transfer 975 | . 297 165 186 327 Effects 7 | . . . . 7 Shutdowns 2 | . . . . 2 Energy Bleed 2 | . . . . 2 Interference 3 | . . . . 3 Siege Activations . | . . . . . Martial Activations . | . . . . . Shielding Activations . | . . . . . Robots Disrupted . | . . . . . Combat Hostiles . | . . . . . Robots Corrupted . | . . . . . Combat Hostiles . | . . . . . Parts Fried 2 | . . . . 2 Impact Corruptions . | . . . . . Robots Melted 3 | . . 1 . 2 Combat Hostiles 2 | . . . . 2 Parts Melted 13 | . . 3 3 7 Heat Transferred 5078 | . 225 931 1554 2368 Parts Sabotaged . | . . . . . Parts Stolen . | . . . . . Parts Stripped . | . . . . . Power Chain Reactions . | . . . . . Alert | -11 -10 -9 -9 -9 ------- Run | Yrd Mat Mat Sto Gar Maximum Alert Level 3 | . . . 1 3 Low Security (%) 56 | 100 100 100 38 . Level 1 13 | . . . 61 18 Level 2 21 | . . . . 57 Level 3 8 | . . . . 24 Level 4 . | . . . . . Level 5 . | . . . . . High Security . | . . . . . Max Security . | . . . . . Peak Influence 956 | 5 79 70 317 956 Initial 206 | . 3 11 18 206 Average 240 | 1 29 13 174 574 Influence Increases 1883 | 10 310 206 437 920 Destroy 0b10 Robot/C 1220 | . 220 120 260 620 Destroy 0b10 Robot/NC 70 | 10 15 20 25 . Destroy Leader 216 | . 54 46 76 40 Successful Hack 26 | . 21 5 . . Disable Machine 60 | . . . 60 . Anti-Garrison Action 200 | . . . . 200 Destroy Structure 16 | . . . 16 . Lose Combat Pursuer 75 | . . 15 . 60 Influence Decreases 927 | 5 288 187 166 281 Entered New Map 157 | . 2 16 28 111 Time Decay 555 | 5 256 156 138 . Lost Part 215 | . 30 15 . 170 Squads Dispatched 7 | . 3 2 2 . Investigation 2 | . 2 . . . Extermination . | . . . . . Reinforcement 4 | . 1 2 1 . Assault . | . . . . . Garrison 1 | . . . 1 . Intercept . | . . . . . Searches Triggered . | . . . . . Construction Impeded . | . . . . . Haulers Reinforced . | . . . . . Active Scanning Responses . | . . . . . Cargo Convoy Interrupts . | . . . . . Stealth | -11 -10 -9 -9 -9 --------- Run | Yrd Mat Mat Sto Gar Distress Signals 5 | . 2 1 2 . Communications Jammed . | . . . . . Distress Signals . | . . . . . Times Spotted 80 | . 17 13 18 32 Peak Tracking Total 9 | . 4 3 7 9 Tactical Retreats 4 | . . 1 . 3 Traps | -11 -10 -9 -9 -9 ------- Run | Yrd Mat Mat Sto Gar Traps Triggered 6 | . 2 . . 4 Indirectly . | . . . . . Trap Hack Attempts . | . . . . . Triggered . | . . . . . Disarmed . | . . . . . Reprogrammed . | . . . . . Reused . | . . . . . Traps Extracted . | . . . . . Installed . | . . . . . Triggered . | . . . . . Machines | -11 -10 -9 -9 -9 ---------- Run | Yrd Mat Mat Sto Gar Machines Disabled 7 | . . . 4 3 Max in Single Turn 1 | . . . 1 1 Garrison Relay 3 | . . . . 3 Machines Repaired . | . . . . . Machines Dismantled . | . . . . . Machines Sabotaged . | . . . . . Overloaded Fab Kills . | . . . . . Hacking | -11 -10 -9 -9 -9 --------- Run | Yrd Mat Mat Sto Gar Machines Accessed 13 | . 6 3 3 1 Terminals 10 | . 5 3 1 1 Fabricators . | . . . . . Repair Stations . | . . . . . Recycling Units 2 | . 1 . 1 . Scanalyzers . | . . . . . Garrison Access 1 | . . . 1 . Total Hacks 33 | . 18 7 6 2 Successful 14 | . 10 1 3 . Failed 19 | . 8 6 3 2 Catastrophic 4 | . 1 2 . 1 Database Lockouts . | . . . . . Manual 15 | . 9 5 1 . Terminals 24 | . 13 7 2 2 Fabricators . | . . . . . Repair Stations . | . . . . . Recycling Units 8 | . 5 . 3 . Scanalyzers . | . . . . . Garrison Access 1 | . . . 1 . Terminal Hacks 4 | . 3 . 1 . Emergency Access Points 1 | . 1 . . . Locate Traps 1 | . 1 . . . Hauler Manifests 2 | . 1 . 1 . Fabricator Hacks . | . . . . . Repair Station Hacks . | . . . . . Recycling Unit Hacks 3 | . 3 . . . Report Inventory 1 | . 1 . . . Retrieve Components 2 | . 2 . . . Scanalyzer . | . . . . . Garrison Access Hacks 1 | . . . 1 . Unlock Access 1 | . . . 1 . Unauthorized Hacks 6 | . 4 1 1 . Terminals 5 | . 3 1 1 . Botnet 5 | . 3 1 1 . Fabricators . | . . . . . Repair Stations . | . . . . . Recycling Units 1 | . 1 . . . Mask 1 | . 1 . . . Scanalyzers . | . . . . . Garrison Access . | . . . . . Data Cores Recovered . | . . . . . Used . | . . . . . Hacking Detections 12 | . 6 3 2 1 Full Trace Events 2 | . 1 . . 1 Feedback Events . | . . . . . Feedback Blocked . | . . . . . Robot Schematics Acquired . | . . . . . Robots Built . | . . . . . Authchips . | . . . . . Time . | . . . . . Total Robot Build Rating . | . . . . . Part Schematics Acquired . | . . . . . Parts Built . | . . . . . Authchips . | . . . . . Time . | . . . . . Total Part Build Rating . | . . . . . Parts Repaired . | . . . . . Time . | . . . . . Parts Recycled . | . . . . . Recycled Matter . | . . . . . Retrieved Matter . | . . . . . Retrieved Components . | . . . . . Parts Scanalyzed . | . . . . . Part Schematics Acquired . | . . . . . Parts Damaged . | . . . . . Bothacking | -11 -10 -9 -9 -9 ------------ Run | Yrd Mat Mat Sto Gar Used RIF Installer . | . . . . . Robots Hacked . | . . . . . Non-combat . | . . . . . Combat . | . . . . . Robot Hacks Applied . | . . . . . Relay Couplers Released 13 | . . . . 13 Machine Destruction 10 | . . . . 10 Programmers 3 | . . . . 3 Fabnet Peak Effective % . | . . . . . Robots Rewired . | . . . . . Allies Hacked . | . . . . . Hacks Repelled . | . . . . . Allies | -11 -10 -9 -9 -9 -------- Run | Yrd Mat Mat Sto Gar Total Allies . | . . . . . Largest Group . | . . . . . Highest-Rated Group . | . . . . . Highest-Rated Ally . | . . . . . Total Orders . | . . . . . Ally Attacks . | . . . . . Total Damage . | . . . . . Kills . | . . . . . Allies Corrupted . | . . . . . Allies Melted . | . . . . . Intel | -11 -10 -9 -9 -9 ------- Run | Yrd Mat Mat Sto Gar Active Infowar (turns) . | . . . . . Robot Analysis Total . | . . . . . Derelict Logs Recovered . | . . . . . Drone Launches . | . . . . . Drone Recoveries . | . . . . . Exploration | -11 -10 -9 -9 -9 ------------- Run | Yrd Mat Mat Sto Gar Turns Passed 2865 | 75 782 658 299 1051 Spaces Moved 1180 | 36 300 223 145 476 Core 9 | 9 . . . . Treads 177 | . . 177 . . Legs 994 | 27 300 46 145 476 Wheels . | . . . . . Hover . | . . . . . Flight . | . . . . . Fastest Speed 50 | 50 120 120 120 120 Average Speed 173 | 132 183 223 120 163 Slowest Speed 250 | 250 190 240 120 190 Overloaded Moves . | . . . . . Propulsion Burnouts . | . . . . . Robots Hopped . | . . . . . Potential Cave-ins . | . . . . . Cave-ins Triggered . | . . . . . Exploration Rate (%) 33 | 3 57 25 41 42 Regions Visited 4 Branch Regions 1 Pre-discovered Areas . | . . . . . Known Exits Taken 1 | . . . 1 . Unknown Exits Taken 3 | 1 1 1 . . Scrap Searched . | . . . . . Spaces Dug 13 | . . . 13 . Terrain Destroyed 13 | . . . 13 . Melee . | . . . . . Projectile . | . . . . . AOE 13 | . . . 13 . Terrain Rammed . | . . . . . Walls Destroyed . | . . . . . Machines Disabled . | . . . . . Actions | -11 -10 -9 -9 -9 --------- Run | Yrd Mat Mat Sto Gar Total 1592 | 49 411 323 204 605 Wait 82 | . 19 32 21 10 Move 1177 | 35 299 222 145 476 Hop . | . . . . . Pick Up 31 | 2 9 13 . 7 Fast Attach 21 | 6 5 4 . 6 Attach 15 | . 3 2 . 10 Detach 2 | . 2 . . . Swap 17 | . 1 6 4 6 Drop 13 | . . 11 1 1 Fire 214 | 6 73 33 33 69 Melee . | . . . . . Ram . | . . . . . Kick . | . . . . . Crush . | . . . . . Escape Stasis 20 | . . . . 20 Rewire . | . . . . . Trap . | . . . . . Miscellaneous . | . . . . . Route ------- -11/Scrapyard -10/Materials (discovered 4 exits: *Mat x2 / [*Min] / [*Sub]) -9/Materials -9/Storage -9/Garrison (discovered 1 exit: [*Mat]) History --------- Turn | Location | Event 30 | -11/Scrapyard | Discovered new exit (range 15) 76 | -11/Scrapyard | Entered Materials 301 | -10/Materials | Discovered new exit (range 12) 315 | -10/Materials | Build established: Mutant 401 | -10/Materials | Discovered new exit (range 10) 766 | -10/Materials | Discovered new exit (range 5) 813 | -10/Materials | Discovered new exit (range 14) 858 | -10/Materials | Entered another Materials area 858 | -9/Materials | Evolved 2 slots: Propulsion x2 984 | -9/Materials | Build established: Scavenger-Mutant 1428 | -9/Materials | Discovered new exit (range 3) 1445 | -9/Materials | Build established: Mutant 1516 | -9/Materials | Entered Storage 1671 | -9/Storage | Destroyed 7 combat bots 1777 | -9/Storage | Build established: Scavenger-Mutant 1790 | -9/Storage | Garrison activated, responded to threat 1815 | -9/Storage | Identified exit to Garrison 1815 | -9/Storage | Entered Garrison 1833 | -9/Garrison | Triggered checkpoint 1989 | -9/Garrison | Triggered checkpoint 1990 | -9/Garrison | Garrison Relay disabled 2105 | -9/Garrison | Triggered checkpoint 2120 | -9/Garrison | Triggered checkpoint 2129 | -9/Garrison | Core integrity fell below 50% 2179 | -9/Garrison | Destroyed 8 combat bots 2185 | -9/Garrison | Lost 5 parts (2n1u2w) 2241 | -9/Garrison | Triggered checkpoint 2284 | -9/Garrison | Lost 3 parts (1p1n1w) 2326 | -9/Garrison | Discovered new exit (range 14) 2410 | -9/Garrison | Build established: Mutant 2493 | -9/Garrison | Garrison Relay disabled 2593 | -9/Garrison | Triggered checkpoint 2596 | -9/Garrison | Core integrity fell below 20% 2682 | -9/Garrison | Garrison Relay disabled 2802 | -9/Garrison | Lost 3 parts (1p1n1w) 2866 | -9/Garrison | Destroyed by S-10 Pest with Light Assault Rifle Last Messages --------------- 02766_ Lgt. Nuclear Core destroyed. 02771_ Adv. Beam Cannon destroyed. 02774_ G-34 Mercenary destroyed. 02780_ Acquired 11 matter. 02781_ XXCTPZBEP>=FEYBEPY4AENUIPB4NPX9G0HJOIN 02784_ Acquired Aluminum Leg. 02785_ Acquired 14 matter. 02827_ Connecting with Garrison Terminal... 02827_ ALERT: Suspicious activity at Terminal G006. Transmitting hostile system tracking data. 02839_ Hvy. EM Pulse Gun destroyed. 02840_ Flight Unit melted. 02840_ S-10 Pest destroyed. 02843_ Destroyed Lgt. Ion Engine. 02846_ System corrupted: Shock Rifle failed to cycle. 02853_ Aluminum Leg destroyed. 02857_ Adv. Beam Cannon destroyed. 02865_ S-10 Pest destroyed. Map ----- +----------------------------------------------------+ | ????????????????????# #??????## ## ## #???? | | ????????????????????# ########[% #???? | | ????????????????????# [%=%*[*%*! #???? | | ????????????????????# ! %%%%*[== #???? | | ????????????????????###########!**## ## #???? | | ????????????????????????????###[ =## ^ ## #???? | | ????????????????????????????# %%! "???? | | ????????????????????????????# "???? | | ????????????????????????????# "???? | | ????????????????????????????# "???? | | ????????????????????????????### ## ## #???? | | ??????????????????????????????# ## ## #???? | | ??????????????????????????????# ??? | | ??????????????????????????????# ??? | | ??????????????????????????????# ??? | | ??????????????????????????????# ##""""######???? | | ??????????????????????????????# #??????????????? | | ??????????????????????????????# #??????????????? | | ??????????????????????????????# #??????????????? | | ??????????????????????????????# #??????????????? | | ??????????????????????????????# #??????????????? | | ??????????????????????????###?# #??????????????? | | ??????????#################T### #??????????????? | | ????????? #??????????????? | | ????????? s% #??????????????? | | ?????????# %@ #??????????????? | | ??????????????######## ###########??????????????? | | ?????????????????????# ?????????????????????????? | | ?????????????????????# ??????????????????????????? | | ?????????????????????# ??????????????????????????? | | ????????????????????? ???????????????????????????? | | ???????????????????? ???????????????????????????? | | ???????????????????? ????????????????????????????? | | ???????????????????##????????????????????????????? | | ?????????????????????????????????????????????????? | | ?????????????????????????????????????????????????? | | ?????????????????????????????????????????????????? | | ?????????????????????????????????????????????????? | | ?????????????????????????????????????????????????? | | ?????????????????????????????????????????????????? | | ?????????????????????????????????????????????????? | | ?????????????????????????????????????????????????? | | ?????????????????????????????????????????????????? | | ?????????????????????????????????????????????????? | | ?????????????????????????????????????????????????? | | ?????????????????????????????????????????????????? | | ?????????????????????????????????????????????????? | | ?????????????????????????????????????????????????? | | ?????????????????????????????????????????????????? | | ?????????????????????????????????????????????????? | +----------------------------------------------------+ Best States ------------- Heat Dissipation 50 Energy Generation 14 Energy Capacity 280 Matter Stores 300 Matter Capacity 300 Sight Range 16 Terrain Scan Density 10 Evasion (%) 55 Recoil Reduction 1 Offensive Hacking 10 Item Schematics ----------------- None Robot Schematics ------------------ None Fabricated ------------ Nothing Repaired ---------- Nothing Alien Tech Used ----------------- None Achievements -------------- None Challenges ------------ None Game ------ Seed SensorPhysicsMinigun Manual? 0 Play Time 00:21:07 Cumulative 290.7 hours Start 2025.06.18 @ 02:47:47 End 2025.06.18 @ 03:08:57 Sessions 1 Manual Loads 0 Difficulty Rogue Special Mode None Game No. 126 Rogue 112 Adventurer 14 Explorer 0 Win Type - Total 16 Types 13/0/1/1/0/0/0/0/1/0 Lore% 60 Gallery% 71 Achievement% 67 Wizard Run 0 Options --------- Layout 1 ASCII 0 Keyboard 0 Movement Arrows Keybinds 0 Fullscreen 1 Font 32/SmallcapsGlow Map View 50x40 Zoom Use 0% Tactical HUD 1 Map Filters NONE Filters NONE Steam 1 RUN: 2ac3f949-9d3a-47a0-a300-1c86e1f76c90